fUST/lending_fUST_20251230
["ID","MTS","AMOUNT","RATE_DAILY","PERIOD"]
[400042404,1767048644571,-570.17,0.00023287,2]
[400042405,1767048644580,-1619.79,0.000233,14]
[400042406,1767048644590,-2000.0,0.00023333,7]
[400042407,1767048644599,-500.0,0.00023341,2]
[400042408,1767048644608,-500.0,0.00023425,2]
[400042410,1767048644617,-500.0,0.00023561,2]
[400042412,1767048644626,-1297.96752771,0.00023561,2]
[400042413,1767048644636,-500.0,0.00023561,2]
[400042414,1767048644645,-284.04,0.00023561,2]
[400042415,1767048644654,-500.0,0.00023561,2]
[400042416,1767048644664,-502.9,0.00023561,2]
[400042418,1767048644673,-893.04,0.00023561,2]
[400042419,1767048644683,-500.0,0.00023561,2]
[400042421,1767048644692,-4821.6,0.00023561,2]
[400042422,1767048644702,-501.1,0.00023561,2]
[400042423,1767048644711,-878.29,0.00023561,2]
[400042424,1767048644721,-680.8,0.00023561,2]
[400042425,1767048644731,-500.0,0.00023561,2]
[400042426,1767048644741,-500.0,0.00023561,2]
[400042427,1767048644750,-155.7364656,0.00023561,2]
[400042428,1767048644759,-994.31,0.00023561,2]
[400042429,1767048644768,-570.17,0.00023561,2]
[400042430,1767048644778,-600.0,0.00023607,2]
[400042431,1767048644787,-500.0,0.00023616,2]
[400042432,1767048644796,-500.0,0.00023666,2]
[400042433,1767048644805,-231341.82758664,0.0002376,2]
[400042434,1767048644814,-500.0,0.00023835,2]
[400042435,1767048644824,-200.0,0.00023835,2]
[400042436,1767048644833,-200.0,0.00023835,2]
[400042437,1767048644844,-200.0,0.00023835,2]
[400042438,1767048644854,-200.0,0.00023835,2]
[400042439,1767048644863,-200.0,0.00023835,2]
[400042440,1767048644873,-200.0,0.00023835,2]
[400042441,1767048644884,-200.0,0.00023835,2]
[400042442,1767048644893,-200.0,0.00023835,2]
[400042443,1767048644903,-1297.96752771,0.00023835,2]
[400042444,1767048644913,-500.0,0.00023835,2]
[400042445,1767048644923,-500.0,0.00023835,2]
[400042446,1767048644932,-502.9,0.00023835,2]
[400042447,1767048644944,-893.04,0.00023835,2]
[400042448,1767048644955,-500.0,0.00023835,2]
[400042449,1767048644964,-4821.6,0.00023835,2]
[400042450,1767048644975,-501.1,0.00023835,2]
[400042451,1767048644984,-878.29,0.00023835,2]
[400042452,1767048644995,-680.8,0.00023835,2]
[400042453,1767048645004,-500.0,0.00023835,2]
[400042454,1767048645013,-500.0,0.00023835,2]
[400042455,1767048645024,-994.31,0.00023835,2]
[400042456,1767048645033,-570.17,0.00023835,2]
[400042457,1767048645042,-500.0,0.00024109,2]
[400042458,1767048645052,-200.0,0.00024109,2]
[400042459,1767048645061,-1297.96752771,0.00024109,2]
[400042460,1767048645070,-500.0,0.00024109,2]
[400042461,1767048645080,-500.0,0.00024109,2]
[400042462,1767048645091,-502.9,0.00024109,2]
[400042463,1767048645101,-893.04,0.00024109,2]
[400042464,1767048645111,-500.0,0.00024109,2]
[400042465,1767048645121,-4821.6,0.00024109,2]
[400042466,1767048645132,-501.1,0.00024109,2]
[400042467,1767048645142,-878.29,0.00024109,2]
[400042468,1767048645151,-680.8,0.00024109,2]
[400042469,1767048645160,-500.0,0.00024109,2]
[400042470,1767048645169,-500.0,0.00024109,2]
[400042471,1767048645179,-994.31,0.00024109,2]
[400042472,1767048645187,-570.17,0.00024109,2]
[400042473,1767048645197,-247.4,0.00024153,2]
[400042474,1767048645206,-180.77432,0.00024201,2]
[400042475,1767048645216,-2455.27497222,0.00024211,2]
[400042476,1767048645227,-200.0,0.00024383,2]
[400042477,1767048645236,-1297.96752771,0.00024383,2]
[400042478,1767048645245,-500.0,0.00024383,2]
[400042479,1767048645254,-500.0,0.00024383,2]
[400042480,1767048645263,-502.9,0.00024383,2]
[400042481,1767048645272,-893.04,0.00024383,2]
[400042482,1767048645281,-500.0,0.00024383,2]
[400042483,1767048645291,-4821.6,0.00024383,2]
[400042484,1767048645300,-501.1,0.00024383,2]
[400042485,1767048645309,-878.29,0.00024383,2]
[400042486,1767048645318,-680.8,0.00024383,2]
[400042487,1767048645327,-500.0,0.00024383,2]
[400042488,1767048645337,-500.0,0.00024383,2]
[400042489,1767048645346,-994.31,0.00024383,2]
[400042490,1767048645355,-570.17,0.00024383,2]
[400042491,1767048645365,-909.63292363,0.00024484,2]
[400042492,1767048645375,-200.0,0.00024657,2]
[400042493,1767048645384,-1297.96752771,0.00024657,2]
[400042494,1767048645393,-500.0,0.00024657,2]
[400042495,1767048645403,-500.0,0.00024657,2]
[400042496,1767048645412,-502.9,0.00024657,2]
[400042497,1767048645421,-893.04,0.00024657,2]
[400042498,1767048645430,-500.0,0.00024657,2]
[400042499,1767048645439,-4821.6,0.00024657,2]
[400042500,1767048645449,-501.1,0.00024657,2]
[400042501,1767048645461,-878.29,0.00024657,2]
[400042502,1767048645470,-680.8,0.00024657,2]
[400042503,1767048645480,-500.0,0.00024657,2]
[400042504,1767048645489,-500.0,0.00024657,2]
[400042505,1767048645498,-994.31,0.00024657,2]
[400042506,1767048645510,-570.17,0.00024657,2]
[400042507,1767048645520,-380.0,0.00024658,2]
[400042509,1767048645530,-500.0,0.00024658,2]
[400042510,1767048645541,-182.10198857,0.000247,2]
[400042511,1767048645553,-1000.0,0.00024743,10]
[400042512,1767048645563,-791.0,0.00024743,10]
[400042513,1767048645572,-500.0,0.00024795,2]
[400042514,1767048645581,-250.0,0.000248,10]
[400042515,1767048645590,-17116.9430092,0.000248,2]
[400042516,1767048645599,-601.96835809,0.00024821,2]
[400042517,1767048645609,-15277.58765553,0.00024831,2]
[400042518,1767048645619,-1146.72,0.000249,7]
[400042519,1767048645628,-301.398599,0.000249,10]
[400042520,1767048645638,-657805.093888,0.000249,2]
[400042521,1767048645648,-200.0,0.00024931,2]
[400042522,1767048645657,-1297.96752771,0.00024931,2]
[400042523,1767048645667,-500.0,0.00024931,2]
[400042525,1767048645768,-186.30778711,0.00024931,2]
[400042526,1767048645778,-502.9,0.00024931,2]
[400042527,1767048645788,-893.04,0.00024931,2]
[400042528,1767048645797,-500.0,0.00024931,2]
[400042529,1767048645806,-4821.6,0.00024931,2]
[400042530,1767048645815,-501.1,0.00024931,2]
[400042531,1767048645825,-878.29,0.00024931,2]
[400042532,1767048645834,-680.8,0.00024931,2]
[400042533,1767048645843,-500.0,0.00024931,2]
[400042534,1767048645853,-500.0,0.00024931,2]
[400042535,1767048645862,-994.31,0.00024931,2]
[400042536,1767048645871,-570.17,0.00024931,2]
[400042537,1767048645881,-500.0,0.00024932,2]
[400042538,1767048645891,-192.1,0.00025,2]
[400042539,1767048645900,-2000.0,0.00025,7]
[400042540,1767048645909,-500.0,0.00025069,2]
[400042541,1767048645919,-247.4,0.00025188,2]
[400042542,1767048645928,-200.0,0.00025205,2]
[400042543,1767048645937,-1297.96752771,0.00025205,2]
[400042544,1767048645947,-500.0,0.00025205,2]
[400042545,1767048645956,-502.9,0.00025205,2]
[400042546,1767048645966,-893.04,0.00025205,2]
[400042547,1767048645975,-500.0,0.00025205,2]
[400042548,1767048645985,-4821.6,0.00025205,2]
[400042549,1767048645994,-501.1,0.00025205,2]
[400042550,1767048646003,-878.29,0.00025205,2]
[400042551,1767048646013,-680.8,0.00025205,2]
[400042552,1767048646022,-500.0,0.00025205,2]
[400042553,1767048646031,-500.0,0.00025205,2]
[400042554,1767048646040,-994.31,0.00025205,2]
[400042555,1767048646049,-570.17,0.00025205,2]
[400042556,1767048646058,-250.0,0.00025205,2]
[400042557,1767048646067,-500.0,0.00025206,2]
[400042558,1767048646078,-11370.66,0.000253,2]
[400042559,1767048646087,-151.0,0.000253,7]
[400042560,1767048646098,-151.0,0.000253,7]
[400042561,1767048646108,-151.0,0.000253,7]
[400042562,1767048646118,-151.0,0.000253,7]
[400042563,1767048646128,-251.745364,0.000253,7]
[400042564,1767048646139,-151.0,0.000253,7]
[400042565,1767048646148,-500.0,0.00025343,2]
[400042566,1767048646157,-200.0,0.00025479,2]
[400042567,1767048646167,-1297.96752771,0.00025479,2]
[400042568,1767048646179,-500.0,0.00025479,2]
[400042569,1767048646189,-502.9,0.00025479,2]
[400042570,1767048646199,-893.04,0.00025479,2]
[400042571,1767048646211,-500.0,0.00025479,2]
[400042572,1767048646222,-4821.6,0.00025479,2]
[400042573,1767048646232,-501.1,0.00025479,2]
[400042574,1767048646242,-878.29,0.00025479,2]
[400042575,1767048646251,-680.8,0.00025479,2]
[400042576,1767048646260,-500.0,0.00025479,2]
[400042577,1767048646269,-553.92230975,0.00025479,2]
[400042578,1767048646278,-994.31,0.00025479,2]
[400042579,1767048646288,-500.0,0.0002548,2]
[400042580,1767048646299,-500.0,0.00025617,2]
[400042581,1767048646310,-310.65116714,0.00025753,2]
[400042582,1767048646319,-1297.96752771,0.00025753,2]
[400042583,1767048646328,-575.42732568,0.00025753,2]
[400042584,1767048646338,-502.9,0.00025753,2]
[400042585,1767048646347,-893.04,0.00025753,2]
[400042586,1767048646355,-500.0,0.00025753,2]
[400042587,1767048646365,-4821.6,0.00025753,2]
[400042588,1767048646373,-501.1,0.00025753,2]
[400042589,1767048646384,-878.29,0.00025753,2]
[400042590,1767048646394,-680.8,0.00025753,2]
[400042591,1767048646404,-500.0,0.00025753,2]
[400042592,1767048646413,-994.31,0.00025753,2]
[400042593,1767048646422,-350.0,0.00025753,2]
[400042594,1767048646433,-500.0,0.00025754,2]
[400042595,1767048646441,-500.0,0.00025891,2]
[400042596,1767048646452,-1297.96752771,0.00026027,2]
[400042597,1767048646463,-502.9,0.00026027,2]
[400042598,1767048646472,-893.04,0.00026027,2]
[400042599,1767048646481,-500.0,0.00026027,2]
[400042600,1767048646490,-4821.6,0.00026027,2]
[400042601,1767048646500,-501.1,0.00026027,2]
[400042602,1767048646510,-878.29,0.00026027,2]
[400042603,1767048646519,-680.8,0.00026027,2]
[400042604,1767048646530,-212.18,0.00026027,2]
[400042605,1767048646540,-994.31,0.00026027,2]
[400042606,1767048646549,-500.0,0.00026028,2]
[400042607,1767048646558,-500.0,0.00026165,2]
[400042608,1767048646567,-151.0,0.00026215,7]
[400042609,1767048646576,-151.0,0.00026215,7]
[400042610,1767048646585,-151.0,0.00026215,7]
[400042611,1767048646596,-151.0,0.00026215,7]
[400042612,1767048646607,-151.0,0.00026215,7]
[400042613,1767048646616,-151.0,0.00026215,7]
[400042614,1767048646627,-151.0,0.00026215,7]
[400042615,1767048646637,-151.0,0.00026215,7]
[400042616,1767048646646,-151.0,0.00026215,7]
[400042617,1767048646655,-151.0,0.00026215,7]
[400042618,1767048646665,-151.0,0.00026215,7]
[400042619,1767048646675,-151.0,0.00026215,7]
[400042620,1767048646685,-151.0,0.00026215,7]
[400042621,1767048646695,-151.0,0.00026215,7]
[400042622,1767048646705,-253.301123,0.00026215,7]
[400042623,1767048646715,-253.301123,0.00026215,7]
[400042624,1767048646726,-151.0,0.00026215,7]
[400042625,1767048646737,-253.301123,0.00026215,7]
[400042626,1767048646746,-151.0,0.00026215,7]
[400042627,1767048646755,-253.301123,0.00026215,7]
[400042628,1767048646764,-151.0,0.00026215,7]
[400042629,1767048646775,-151.0,0.00026215,7]
[400042630,1767048646785,-151.0,0.00026215,7]
[400042631,1767048646794,-151.0,0.00026215,7]
[400042632,1767048646804,-151.0,0.00026215,7]
[400042633,1767048646814,-151.0,0.00026215,7]
[400042634,1767048646824,-151.0,0.00026215,7]
[400042635,1767048646834,-151.0,0.00026215,7]
[400042636,1767048646843,-151.0,0.00026215,7]
[400042637,1767048646852,-151.0,0.00026215,7]
[400042638,1767048646860,-151.0,0.00026215,7]
[400042639,1767048646869,-151.0,0.00026215,7]
[400042640,1767048646878,-222.50442,0.00026215,7]
[400042641,1767048646887,-151.0,0.00026215,7]
[400042642,1767048646896,-151.0,0.00026215,7]
[400042643,1767048646905,-151.0,0.00026215,7]
[400042644,1767048646915,-151.0,0.00026215,7]
[400042645,1767048646925,-151.0,0.00026215,7]
[400042646,1767048646935,-151.0,0.00026215,7]
[400042647,1767048646944,-152.472212,0.00026215,7]
[400042648,1767048646954,-151.0,0.00026215,7]
[400042649,1767048646963,-151.0,0.00026215,7]
[400042650,1767048646972,-151.0,0.00026215,7]
[400042651,1767048646982,-151.0,0.00026215,7]
[400042652,1767048646991,-151.0,0.00026215,7]
[400042653,1767048647001,-249.18,0.00026215,7]
[400042654,1767048647011,-156.404391,0.00026215,7]
[400042655,1767048647020,-151.0,0.00026215,7]
[400042656,1767048647030,-151.0,0.00026215,7]
[400042657,1767048647039,-151.0,0.00026215,7]
[400042658,1767048647049,-151.0,0.00026215,7]
[400042659,1767048647060,-223.767963,0.00026215,7]
[400042660,1767048647071,-247.4,0.00026224,2]
[400042661,1767048647079,-15277.58765547,0.00026242,2]
[400042662,1767048647090,-1297.96752771,0.00026301,2]
[400042663,1767048647101,-502.9,0.00026301,2]
[400042664,1767048647111,-893.04,0.00026301,2]
[400042665,1767048647121,-500.0,0.00026301,2]
[400042666,1767048647131,-4821.6,0.00026301,2]
[400042667,1767048647140,-501.1,0.00026301,2]
[400042668,1767048647150,-878.29,0.00026301,2]
[400042669,1767048647159,-680.8,0.00026301,2]
[400042670,1767048647169,-994.31,0.00026301,2]
[400042671,1767048647178,-450.0,0.00026301,2]
[400042672,1767048647188,-469.39726822,0.00026302,2]
[400042673,1767048647198,-1619.79,0.000264,14]
[400042674,1767048647209,-2168.0,0.00026513,2]
[400042675,1767048647219,-627.0,0.00026513,2]
[400042676,1767048647229,-1364.0,0.00026513,2]
[400042677,1767048647241,-1297.96752771,0.00026575,2]
[400042678,1767048647250,-502.9,0.00026575,2]
[400042679,1767048647259,-893.04,0.00026575,2]
[400042680,1767048647268,-500.0,0.00026575,2]
[400042681,1767048647277,-4821.6,0.00026575,2]
[400042682,1767048647286,-501.1,0.00026575,2]
[400042683,1767048647295,-878.29,0.00026575,2]
[400042684,1767048647305,-680.8,0.00026575,2]
[400042685,1767048647315,-994.31,0.00026575,2]
[400042686,1767048647325,-2000.0,0.00026667,7]
[400042687,1767048647336,-472.008641,0.00026676,2]
[400042688,1767048647346,-1297.96752771,0.00026849,2]
[400042689,1767048647355,-502.9,0.00026849,2]
[400042690,1767048647365,-893.04,0.00026849,2]
[400042691,1767048647374,-500.0,0.00026849,2]
[400042692,1767048647384,-4821.6,0.00026849,2]
[400042693,1767048647398,-501.1,0.00026849,2]
[400042694,1767048647407,-878.29,0.00026849,2]
[400042695,1767048647417,-680.8,0.00026849,2]
[400042696,1767048647426,-994.31,0.00026849,2]
[400042697,1767048647435,-550.0,0.00026849,2]
[400042698,1767048647444,-1024.67436269,0.00027,2]
[400042699,1767048647457,-10000.0,0.00027023,2]
[400042700,1767048647467,-1146.72,0.000271,7]
[400042701,1767048647476,-1297.96752771,0.00027123,2]
[400042702,1767048647485,-502.9,0.00027123,2]
[400042703,1767048647496,-893.04,0.00027123,2]
[400042704,1767048647507,-500.0,0.00027123,2]
[400042705,1767048647518,-4821.6,0.00027123,2]
[400042706,1767048647528,-501.1,0.00027123,2]
[400042707,1767048647538,-878.29,0.00027123,2]
[400042708,1767048647547,-680.8,0.00027123,2]
[400042709,1767048647557,-994.31,0.00027123,2]
[400042710,1767048647567,-1000.0,0.00027217,30]
[400042711,1767048647576,-1000.0,0.00027217,30]
[400042712,1767048647585,-5000.0,0.00027219,15]
[400042713,1767048647594,-247.4,0.00027259,2]
[400042714,1767048647603,-2000.0,0.00027362,7]
[400042715,1767048647612,-2000.0,0.00027371,7]
[400042716,1767048647622,-2000.0,0.00027379,7]
[400042717,1767048647631,-2000.0,0.00027388,7]
[400042718,1767048647641,-2000.0,0.00027397,7]
[400042719,1767048647651,-1297.96752771,0.00027397,2]
[400042720,1767048647662,-502.9,0.00027397,2]
[400042721,1767048647672,-893.04,0.00027397,2]
[400042722,1767048647682,-382.63332871,0.00027397,7]
[400042723,1767048647692,-500.0,0.00027397,2]
[400042724,1767048647703,-4821.6,0.00027397,2]
[400042725,1767048647712,-199.19952446,0.00027397,2]
[400042726,1767048647722,-501.1,0.00027397,2]
[400042727,1767048647731,-878.29,0.00027397,2]
[400042728,1767048647741,-680.8,0.00027397,2]
[400042729,1767048647750,-994.31,0.00027397,2]
[400042730,1767048647760,-223.7001258,0.00027397,2]
[400042731,1767048647769,-650.0,0.00027397,5]
[400042732,1767048647779,-300.0,0.00027397,2]
[400042733,1767048647787,-300.0,0.00027397,2]
[400042734,1767048647798,-300.0,0.00027397,2]
[400042735,1767048647807,-300.0,0.00027397,2]
[400042736,1767048647902,-300.0,0.00027397,2]
[400042737,1767048647912,-300.0,0.00027397,2]
[400042738,1767048647921,-300.0,0.00027397,2]
[400042739,1767048647931,-300.0,0.00027397,2]
[400042740,1767048647942,-300.0,0.00027397,2]
[400042741,1767048647952,-151.0,0.00027397,7]
[400042742,1767048647963,-151.0,0.00027397,7]
[400042743,1767048647972,-403.601255,0.00027397,7]
[400042744,1767048647982,-403.601255,0.00027397,7]
[400042745,1767048647991,-403.601255,0.00027397,7]
[400042746,1767048648000,-403.601255,0.00027397,7]
[400042747,1767048648009,-500.0,0.00027397,5]
[400042748,1767048648019,-157.04098773,0.00027397,5]
[400042749,1767048648028,-11370.66,0.000274,2]
[400042750,1767048648037,-442.0,0.00027486,2]
[400042751,1767048648047,-442.0,0.00027512,2]
[400042752,1767048648057,-2455.27497222,0.0002754,2]
[400042753,1767048648067,-442.0,0.00027572,7]
[400042754,1767048648076,-5000.0,0.00027591,15]
[400042755,1767048648087,-192.1,0.000276,2]
[400042756,1767048648096,-15277.58765547,0.00027653,2]
[400042757,1767048648106,-1297.96752771,0.00027671,2]
[400042758,1767048648116,-502.9,0.00027671,2]
[400042759,1767048648127,-893.04,0.00027671,2]
[400042760,1767048648139,-462.88,0.00027671,2]
[400042761,1767048648149,-4821.6,0.00027671,2]
[400042762,1767048648159,-501.1,0.00027671,2]
[400042763,1767048648168,-878.29,0.00027671,2]
[400042764,1767048648177,-680.8,0.00027671,2]
[400042765,1767048648189,-994.31,0.00027671,2]
[400042766,1767048648198,-442.0,0.00027678,2]
[400042767,1767048648208,-5000.0,0.00027761,2]
[400042768,1767048648217,-31327.50318541,0.00027767,7]
[400042769,1767048648226,-442.0,0.00027902,7]
[400042770,1767048648236,-442.0,0.00027925,2]
[400042771,1767048648245,-1836.079856,0.0002794,5]
[400042772,1767048648255,-1297.96752771,0.00027945,2]
[400042773,1767048648265,-502.9,0.00027945,2]
[400042774,1767048648275,-893.04,0.00027945,2]
[400042775,1767048648286,-4821.6,0.00027945,2]
[400042776,1767048648296,-501.1,0.00027945,2]
[400042777,1767048648306,-878.29,0.00027945,2]
[400042778,1767048648317,-680.8,0.00027945,2]
[400042779,1767048648328,-994.31,0.00027945,2]
[400042780,1767048648338,-1000.0,0.00027945,5]
[400042781,1767048648348,-750.0,0.00027945,5]
[400042782,1767048648358,-250.0,0.00027945,5]
[400042783,1767048648368,-250.0,0.00027945,5]
[400042784,1767048648378,-1000.0,0.0002796,5]
[400042785,1767048648391,-5000.0,0.00027962,15]
[400042786,1767048648401,-1000.0,0.0002798,5]
[400042787,1767048648410,-1202.110064,0.0002798,5]
[400042788,1767048648420,-1000.0,0.00028,5]
[400042789,1767048648429,-1000.0,0.00028,5]
[400042790,1767048648438,-2477.790854,0.00028,2]
[400042791,1767048648448,-1017.0,0.00028,2]
[400042792,1767048648461,-442.0,0.00028077,2]
[400042793,1767048648471,-442.0,0.00028079,2]
[400042794,1767048648480,-4254.0,0.00028115,2]
[400042795,1767048648489,-5000.0,0.00028119,15]
[400042796,1767048648499,-442.0,0.00028194,2]
[400042797,1767048648509,-1298.18462656,0.00028219,2]
[400042798,1767048648519,-502.91652745,0.00028219,2]
[400042799,1767048648531,-893.06635343,0.00028219,2]
[400042800,1767048648541,-4821.82605104,0.00028219,2]
[400042801,1767048648550,-501.21245629,0.00028219,2]
[400042802,1767048648560,-878.42472606,0.00028219,2]
[400042803,1767048648569,-680.91387103,0.00028219,2]
[400042804,1767048648579,-994.35737078,0.00028219,2]
[400042805,1767048648590,-247.4,0.00028295,3]
[400042806,1767048648600,-5000.0,0.00028333,15]
[400042807,1767048648610,-2000.0,0.00028333,7]
[400042808,1767048648620,-442.0,0.00028389,2]
[400042809,1767048648631,-1619.79,0.000284,14]
[400042810,1767048648641,-850.0,0.00028493,5]
[400042811,1767048648651,-1340.79710495,0.00028493,5]
[400042812,1767048648660,-350.0,0.00028493,5]
[400042813,1767048648669,-350.0,0.00028493,5]
[400042814,1767048648679,-1500.0,0.000285,2]
[400042815,1767048648690,-398.0,0.00028662,10]
[400042816,1767048648701,-5761.0,0.00028662,10]
[400042817,1767048648710,-1146.72,0.000287,7]
[400042818,1767048648719,-5000.0,0.00028705,15]
[400042819,1767048648728,-442.0,0.00028736,2]
[400042820,1767048648738,-500.0,0.00028767,7]
[400042821,1767048648747,-500.0,0.00028767,7]
[400042822,1767048648756,-500.0,0.00028767,7]
[400042823,1767048648766,-500.0,0.00028767,7]
[400042824,1767048648775,-500.0,0.00028767,7]
[400042825,1767048648784,-500.0,0.00028767,7]
[400042826,1767048648794,-500.0,0.00028767,7]
[400042827,1767048648803,-500.0,0.00028767,7]
[400042828,1767048648812,-500.0,0.00028767,7]
[400042829,1767048648821,-500.0,0.00028767,7]
[400042830,1767048648832,-500.0,0.00028767,7]
[400042831,1767048648845,-500.0,0.00028767,7]
[400042832,1767048648854,-500.0,0.00028767,7]
[400042833,1767048648864,-494.49773286,0.00028767,7]
[400042834,1767048648874,-180.77432,0.00028767,60]
[400042835,1767048648884,-2723.66,0.000288,2]
[400042836,1767048648895,-2723.66,0.000288,2]
[400042837,1767048648904,-2723.66,0.000289,2]
[400042838,1767048648914,-2723.66,0.000289,2]
[400042839,1767048648924,-4257.0,0.00028929,2]
[400042840,1767048648934,-442.0,0.00028942,2]
[400042841,1767048648946,-5000.0,0.00028999,15]
[400042842,1767048648955,-200.0,0.00029,120]
[400042843,1767048648965,-2723.66,0.00029,2]
[400042844,1767048648975,-1500.0,0.00029,2]
[400042845,1767048648984,-1017.0,0.00029,2]
[400042846,1767048648994,-950.0,0.00029041,5]
[400042847,1767048649004,-450.0,0.00029041,5]
[400042848,1767048649015,-450.0,0.00029041,5]
[400042849,1767048649024,-4254.0,0.0002905,2]
[400042850,1767048649034,-15277.58765547,0.00029064,2]
[400042851,1767048649043,-5000.0,0.00029076,15]
[400042852,1767048649053,-11370.66,0.000291,2]
[400042853,1767048649062,-2723.66,0.000291,2]
[400042854,1767048649071,-2723.66,0.000291,2]
[400042855,1767048649080,-601.96835809,0.00029103,2]
[400042856,1767048649089,-200.0,0.000292,120]
[400042857,1767048649097,-2723.66,0.000292,2]
[400042858,1767048649106,-2723.66,0.000292,2]
[400042859,1767048649117,-4254.0,0.00029233,2]
[400042860,1767048649125,-442.0,0.00029272,2]
[400042861,1767048649135,-2723.66,0.000293,2]
[400042862,1767048649144,-442.0,0.00029327,2]
[400042863,1767048649153,-247.4,0.0002933,3]
[400042864,1767048649162,-442.0,0.00029347,2]
[400042865,1767048649171,-442.0,0.00029359,2]
[400042866,1767048649181,-2723.66,0.000294,2]
[400042867,1767048649191,-2723.66,0.000294,2]
[400042868,1767048649201,-1500.0,0.000295,2]
[400042869,1767048649212,-2723.66,0.000295,2]
[400042870,1767048649223,-2723.66,0.000295,2]
[400042871,1767048649233,-2156.0,0.00029513,2]
[400042872,1767048649243,-627.0,0.00029513,2]
[400042873,1767048649254,-1364.0,0.00029513,2]
[400042874,1767048649264,-442.0,0.00029518,2]
[400042875,1767048649273,-156.78044487,0.0002953,5]
[400042876,1767048649285,-442.0,0.00029541,2]
[400042877,1767048649296,-4254.0,0.00029545,7]
[400042878,1767048649306,-1050.0,0.00029589,5]
[400042879,1767048649315,-4300.10691997,0.00029589,5]
[400042880,1767048649323,-550.0,0.00029589,5]
[400042881,1767048649334,-550.0,0.00029589,5]
[400042882,1767048649345,-2723.66,0.000296,2]
[400042883,1767048649354,-2723.66,0.000296,2]
[400042884,1767048649363,-2723.66,0.000297,2]
[400042885,1767048649373,-2723.66,0.000298,2]
[400042886,1767048649382,-2723.66,0.000298,2]
[400042887,1767048649392,-428.0,0.000299,2]
[400042888,1767048649401,-2723.66,0.000299,2]
[400042889,1767048649411,-2723.66,0.000299,2]
[400042890,1767048649421,-4254.0,0.0002993,2]
[400042891,1767048649430,-1000.0,0.00029939,30]
[400042892,1767048649440,-1000.0,0.00029939,30]
[400042893,1767048649455,-579.0,0.00029939,30]
[400042894,1767048649464,-5000.0,0.00029999,15]
[400042895,1767048649474,-5000.0,0.00029999,15]
[400042896,1767048649483,-154.21565219,0.0003,60]
[400042897,1767048649494,-192.1,0.0003,2]
[400042898,1767048649504,-5000.0,0.0003,120]
[400042899,1767048649513,-500.0,0.0003,5]
[400042900,1767048649523,-1000.0,0.0003,14]
[400042901,1767048649533,-1500.0,0.0003,2]
[400042902,1767048649542,-1017.0,0.0003,7]
[400042903,1767048649551,-912.92938636,0.0003,14]
[400042904,1767048649560,-2723.66,0.0003,2]
[400042905,1767048649569,-1014.82,0.0003,30]
[400042906,1767048649579,-2000.0,0.0003,7]
[400042907,1767048649588,-442.0,0.00030012,2]
[400042908,1767048649597,-1014.82,0.0003006,30]
[400042909,1767048649606,-2723.66,0.000301,2]